bitfinex/quotes_ETHUSD_20250126
["timestamp","ask_amount","ask_price","bid_price","bid_amount"]
[1737863616415,0.03679768,3339.7,3339.4,2.99454]
[1737863616752,0.7506,3339.8,3339.1,3.78019]
[1737863616926,0.03673675,3339.6,3339.3,2.99462]
[1737863617125,0.03679768,3339.7,3339.3,2.99462]
[1737863617356,0.03667581,3339.5,3339.3,2.99462]
[1737863617657,0.7506,3339.8,3339.3,2.99462]
[1737863618163,0.03679768,3339.7,3339.3,2.99462]
[1737863618467,0.7506,3339.8,3339.3,2.99462]
[1737863618811,0.03667687,3339.7,3339.3,2.99462]
[1737863619253,0.7506,3339.8,3339.3,2.99462]
[1737863619417,0.03667687,3339.7,3339.3,2.99462]
[1737863619623,0.7506,3339.8,3339.3,2.99462]
[1737863620073,0.03679768,3339.7,3339.3,2.99462]
[1737863620370,0.7506,3339.8,3339.4,2.99453]
[1737863621060,0.03679768,3339.7,3339.4,2.99453]
[1737863621221,0.7506,3339.8,3339.4,2.99453]
[1737863621761,0.03679768,3339.7,3339.4,2.99453]
[1737863622260,0.03679768,3339.7,3339.2,2.99472]
[1737863622413,0.03673675,3339.6,3339.2,2.99472]
[1737863622858,0.7506,3339.8,3339.3,2.99462]
[1737863623329,0.03679768,3339.7,3339.3,2.99462]
[1737863623525,0.03679768,3339.7,3339.2,2.99472]
[1737863623719,0.7506,3339.8,3339.4,2.99454]
[1737863623938,0.03673675,3339.6,3339.4,2.99454]
[1737863624251,0.7506,3339.8,3339.4,2.99454]
[1737863624963,0.03551047,3339.7,3339.4,2.99454]
[1737863625344,0.7506,3339.8,3339.4,2.99454]
[1737863625560,0.03544954,3339.6,3339.4,2.99454]
[1737863625761,0.7506,3339.8,3339.4,2.99454]
[1737863625946,0.0353886,3339.5,3339.4,2.99454]
[1737863626273,0.7506,3339.8,3339.4,2.99454]
[1737863626634,0.7506,3339.8,3339.2,2.99472]
[1737863626847,0.03551047,3339.7,3339.2,2.99472]
[1737863630341,0.03551047,3339.7,3339.3,2.99461]
[1737863630758,0.7506,3339.8,3339.3,2.99461]
[1737863631091,0.03544954,3339.6,3339.3,2.99461]
[1737863631381,0.0353886,3339.5,3339.3,2.99461]
[1737863631780,0.7506,3339.8,3339.3,2.99461]
[1737863632170,0.03551047,3339.7,3339.3,2.99461]
[1737863632364,0.03551047,3339.7,3339.2,2.99472]
[1737863632596,3.74484,3339.8,3339.2,2.99472]
[1737863632887,0.03551047,3339.7,3339.2,2.99472]
[1737863634088,0.8297,3339.6,3339.2,2.99472]
[1737863634458,0.0353886,3339.5,3339.2,2.99472]
[1737863636092,0.0353886,3339.5,3339.0,3.30465522]
[1737863636394,1.13268286,3339.4,3339.0,0.30976522]
[1737863636759,0.03397088,3339.3,3339.0,0.30976522]
[1737863637661,0.03397088,3339.3,3339.1,3.76579]
[1737863637849,0.8297,3339.7,3339.1,3.76579]
[1737863638193,0.03404541,3339.6,3339.1,2.99479]
[1737863641504,0.03404541,3339.6,3339.0,0.30976522]
[1737863641805,2.99438,3339.6,3339.0,0.30976522]
[1737863642005,3.676207,3339.6,3339.0,0.30976522]
[1737863642307,0.8297,3339.4,3339.0,0.30976522]
[1737863642815,0.03387519,3339.3,3339.0,0.30976522]
[1737863643706,2.99481,3339.1,3339.0,0.30976522]
[1737863643905,3.85826329,3339.1,3339.0,0.30976522]
[1737863644095,2.99498,3339.0,3338.3,2.9955]
[1737863644418,2.99498,3339.0,3338.9,0.30982389]
[1737863644578,2.99498,3339.0,3338.3,2.9955]
[1737863644914,2.99498,3339.0,3338.0,2.99579]
[1737863644915,3.82468,3339.0,3338.9,0.30983063]
[1737863645119,0.8297,3338.8,3337.9,0.1679575]
[1737863645419,0.8297,3338.4,3337.9,0.1679575]
[1737863645566,3.82516,3338.4,3338.0,0.30986332]
[1737863646813,0.8297,3338.4,3338.0,0.30986332]
[1737863647207,2.99555,3338.3,3338.0,0.25986332]
[1737863647513,0.8297,3338.2,3337.9,0.1679575]
[1737863647808,3.8254,3338.2,3337.9,0.1679575]
[1737863648409,3.82507,3338.5,3337.9,0.1679575]
[1737863648613,6.99098572,3339.0,3338.0,0.02995766]
[1737863648800,0.8297,3338.9,3338.2,2.99561]
[1737863648971,0.78155657,3338.8,3338.2,2.99561]
[1737863650719,3.82471,3338.9,3338.2,2.99561]
[1737863651022,0.7843,3339.2,3338.6,2.99525]
[1737863652484,0.03310376,3339.1,3338.6,2.99525]
[1737863653509,3.02792376,3339.1,3338.4,2.99543]
[1737863653818,3.02792376,3339.1,3338.3,0.8311]
[1737863653819,2.99491,3339.0,3338.3,0.8311]
[1737863654372,2.995,3338.9,3338.3,0.8311]
[1737863654575,3.02805744,3338.9,3338.3,0.8311]
[1737863655015,3.02805744,3338.9,3338.0,2.99578]
[1737863655016,0.03305744,3338.9,3338.7,2.99516]
[1737863655217,0.03305744,3338.9,3338.7,3.728164]
[1737863655426,2.99464,3339.3,3338.7,3.728164]
[1737863655715,2.99464,3339.3,3338.5,0.7895]
[1737863655918,0.03346775,3339.2,3338.5,0.7895]
[1737863656126,0.03346775,3339.2,3338.6,2.99525]
[1737863657385,0.03346775,3339.2,3338.5,0.7895]
[1737863657598,3.02825775,3339.2,3338.5,3.78483]
[1737863657839,0.7561,3339.1,3338.5,3.78483]
[1737863658124,0.03330514,3339.0,3338.5,3.78483]
[1737863659238,0.03330514,3339.0,3338.6,2.99525]
[1737863660982,0.03330514,3339.0,3338.9,2.99499]
[1737863661439,0.7561,3339.6,3339.1,2.99479]
[1737863662052,0.7561,3339.6,3338.9,2.99499]
[1737863662248,2.99401,3340.0,3338.7,2.99517]
[1737863662473,0.7561,3339.6,3338.7,2.99517]
[1737863663132,0.7561,3339.6,3338.7,3.02511865]
[1737863663459,0.7561,3339.6,3338.7,2.99517]
[1737863663460,2.99461,3339.4,3338.7,2.99517]
[1737863663864,2.99461,3339.4,3338.7,3.78467]
[1737863664239,2.99461,3339.4,3338.8,2.99506]
[1737863664673,2.99461,3339.4,3338.8,2.74506]
[1737863664969,3.75047,3339.6,3338.9,2.99499]
[1737863665205,3.75047,3339.6,3339.0,2.9949]
[1737863666458,2.99446,3339.5,3338.8,2.99502]
[1737863667375,0.03248946,3339.4,3338.9,2.99491]
[1737863667574,3.75048,3339.6,3339.0,2.9949]
[1737863667770,0.03222499,3339.3,3338.8,2.99508]
[1737863667930,2.99446,3339.5,3338.8,2.99508]
[1737863668379,0.03227965,3339.4,3338.8,2.99508]
[1737863668577,0.03227965,3339.4,3338.9,2.99497]
[1737863670932,0.03227965,3339.4,3338.7,3.78466]
[1737863671128,0.03227965,3339.4,3339.0,2.9949]
[1737863671334,0.0322334,3339.3,3339.0,2.9949]
[1737863671649,3.75053,3339.6,3339.0,2.9949]
[1737863672164,0.03148817,3339.5,3339.0,2.9949]
[1737863672676,3.02597817,3339.5,3338.8,2.99502]
[1737863672901,3.70361599,3339.5,3338.8,2.99502]
[1737863674585,3.70361599,3339.5,3338.9,2.99497]
[1737863682680,3.70361599,3339.5,3338.8,0.02994746]
[1737863682681,0.03148817,3339.5,3339.3,2.99455]
[1737863687398,0.826,3339.9,3339.3,2.99455]
[1737863687821,0.03149898,3339.8,3339.3,2.99455]
[1737863690427,0.8307,3339.7,3339.1,2.99481]
[1737863690594,4.5100269,3339.7,3339.1,2.99481]
[1737863690928,0.03163309,3339.6,3339.1,2.99481]
[1737863691299,0.8307,3339.5,3338.9,2.99499]
[1737863691506,3.82516,3339.5,3338.9,2.99499]
[1737863691836,0.0313077,3339.4,3338.9,2.99499]
[1737863693545,0.0313077,3339.4,3339.0,2.99488]
[1737863695446,0.03111237,3339.3,3338.8,2.99504]
[1737863695936,0.03111237,3339.3,3338.9,2.99498]
[1737863696143,3.82516,3339.5,3338.9,2.99498]
[1737863696517,0.03138523,3339.4,3338.9,2.99498]
[1737863698932,0.03138523,3339.4,3339.3,0.2496]
[1737863699133,0.71646775,3339.4,3339.3,0.2496]
[1737863700327,0.03138523,3339.4,3339.3,0.2496]
[1737863705154,3.02592523,3339.4,3339.3,0.2496]
[1737863705355,4.97208098,3339.4,3339.3,0.2496]
[1737863705652,3.80982523,3339.4,3339.3,0.2496]
[1737863707327,6.80982523,3339.4,3339.3,0.2496]
[1737863708038,8.11033183,3339.4,3339.3,0.2496]
[1737863710556,8.11033183,3339.4,3337.9,0.1679575]
[1737863710557,2.99541,3338.5,3337.9,0.1679575]
[1737863710759,0.7855,3338.4,3337.9,0.1679575]
[1737863710950,0.81576366,3338.4,3337.9,0.1679575]
[1737863712062,2.99554,3338.3,3337.9,0.1679575]
[1737863712359,0.03013959,3338.2,3337.9,0.1679575]
[1737863713873,3.02578959,3338.2,3337.9,0.1679575]
[1737863714367,2.9958,3338.0,3337.9,0.1679575]
[1737863714869,3.02581761,3338.0,3337.9,0.1679575]
[1737863715480,0.03001761,3338.0,3337.9,0.1679575]
[1737863715775,0.03001761,3338.0,3337.9,3.1638475]
[1737863716276,0.02973811,3338.0,3337.9,3.1638475]
[1737863716582,0.8043,3338.4,3337.9,3.1638475]
[1737863716929,0.02982437,3338.3,3337.9,3.1638475]
[1737863718314,0.02982437,3338.3,3337.9,0.1679575]
[1737863718918,0.02982437,3338.3,3337.9,0.1179575]
[1737863723035,0.02982437,3338.3,3338.2,2.99562]
[1737863723411,2.99503,3338.9,3338.3,2.9955]
[1737863724416,3.78862,3339.1,3338.4,2.99543]
[1737863724646,2.99491,3339.0,3338.2,0.85685308]
[1737863724803,2.99491,3339.0,3338.2,3.82249]
[1737863725147,2.99491,3339.0,3338.2,3.85244308]
[1737863725312,2.99491,3339.0,3338.2,3.82249]
[1737863725513,2.99491,3339.0,3338.2,0.8269]
[1737863725728,0.7938,3338.6,3338.2,0.8269]
[1737863725912,3.78908,3338.6,3338.2,0.8269]
[1737863726111,6.78442,3338.6,3337.9,3.9407275]
[1737863726618,2.99537,3338.5,3337.9,3.9407275]
[1737863727531,0.02991223,3338.4,3337.9,3.9407275]
[1737863729724,0.02991223,3338.4,3337.9,0.9448575]
[1737863729934,0.38190822,3338.3,3337.9,0.1179575]
[1737863730230,0.02984805,3338.2,3337.9,0.1179575]
[1737863731326,0.8193,3338.1,3337.9,0.1179575]
[1737863731526,2.9958,3338.0,3337.9,0.1179575]
[1737863731728,3.02553915,3338.0,3337.9,0.1179575]
[1737863731973,3.74777789,3338.0,3337.9,0.1179575]
[1737863736785,3.74777789,3338.0,3337.9,0.0679575]
[1737863741537,4.57397789,3338.0,3337.9,0.0679575]
[1737863761171,3.74777789,3338.0,3337.9,0.0679575]
[1737863762933,0.02973915,3338.0,3337.9,0.0679575]
[1737863763136,0.02973915,3338.0,3337.9,0.9007575]
[1737863763875,3.02553915,3338.0,3337.9,0.9007575]
[1737863764177,3.02553915,3338.0,3337.9,0.0679575]
[1737863766450,3.77793915,3338.0,3337.9,0.0679575]
[1737863766651,5.10235943,3338.0,3337.9,0.0679575]
[1737863773109,4.34995943,3338.0,3337.9,0.0679575]
[1737863776282,0.02973915,3338.0,3337.9,0.8548575]
[1737863780501,2.99554,3338.3,3337.9,0.8548575]
[1737863780709,0.02747706,3338.0,3337.9,0.8548575]
[1737863781000,2.99564,3338.2,3337.9,0.8548575]
[1737863781593,0.02734153,3338.1,3337.9,0.8548575]
[1737863782426,2.9958,3338.0,3337.9,0.0679575]
[1737863782784,3.02322019,3338.0,3337.9,0.0679575]
[1737863783092,0.02742019,3338.0,3337.9,0.8778575]
[1737863783627,2.99571,3338.1,3337.9,0.8778575]
[1737863783784,0.02746091,3338.0,3337.9,0.8778575]
[1737863784524,3.325578,3338.0,3337.9,0.0679575]
[1737863794525,3.33390335,3338.0,3337.9,0.0679575]
[1737863799012,3.30644244,3338.0,3337.9,0.0679575]
[1737863799214,3.29811709,3338.0,3337.9,0.0679575]
[1737863799459,3.33384593,3338.0,3337.9,0.0679575]
[1737863799753,3.29811709,3338.0,3337.9,0.0679575]
[1737863799909,3.33384593,3338.0,3337.9,0.0679575]
[1737863800105,3.29811709,3338.0,3337.9,0.0679575]
[1737863800353,3.33384593,3338.0,3337.9,0.0679575]
[1737863800560,3.29811709,3338.0,3337.9,0.0679575]
[1737863800770,3.33384593,3338.0,3337.9,0.0679575]
[1737863801041,3.29811709,3338.0,3337.9,0.0679575]
[1737863801559,3.33384593,3338.0,3337.9,0.0679575]
[1737863801743,3.29811709,3338.0,3337.9,0.0679575]
[1737863802558,3.33384593,3338.0,3337.9,0.0679575]
[1737863803055,3.29811709,3338.0,3337.9,0.0679575]
[1737863803550,3.33384593,3338.0,3337.9,0.0679575]
[1737863803917,3.29811709,3338.0,3337.9,0.0679575]
[1737863804143,3.33387369,3338.0,3337.9,0.0679575]
[1737863804475,3.29811709,3338.0,3337.9,0.0679575]
[1737863804684,3.33384593,3338.0,3337.9,0.0679575]
[1737863804871,3.29811709,3338.0,3337.9,0.0679575]
[1737863805078,3.3338832,3338.0,3337.9,0.0679575]
[1737863805258,3.29811709,3338.0,3337.9,0.0679575]
[1737863805694,3.3338832,3338.0,3337.9,0.0679575]
[1737863805842,3.29811709,3338.0,3337.9,0.0679575]
[1737863806182,0.03576611,3338.0,3337.9,0.8565575]
[1737863806854,5.30716563,3338.1,3337.9,0.8565575]
[1737863807056,0.03576611,3338.0,3337.9,0.8565575]
[1737863807378,5.30716563,3338.1,3337.9,0.8565575]
[1737863807537,0.03576611,3338.0,3337.9,0.8565575]
[1737863807737,5.30716563,3338.1,3337.9,0.8565575]
[1737863807987,0.03576611,3338.0,3337.9,0.8565575]
[1737863808327,5.30716563,3338.1,3337.9,0.8565575]
[1737863808646,0.03579387,3338.0,3337.9,0.8565575]
[1737863808847,5.30716563,3338.1,3337.9,0.8565575]
[1737863809192,0.03576611,3338.0,3337.9,0.8565575]
[1737863809484,5.30716563,3338.1,3337.9,0.8565575]
[1737863809793,0.03579387,3338.0,3337.9,0.8565575]
[1737863810155,2.99564,3338.2,3337.9,0.8565575]
[1737863810491,0.03593257,3338.1,3337.9,0.8565575]
[1737863812298,3.03165257,3338.1,3337.9,0.8565575]
[1737863818715,0.03593257,3338.1,3337.9,0.8565575]
[1737863819072,5.30716563,3338.5,3338.0,0.81345491]
[1737863819411,5.30716563,3338.5,3338.1,0.7835]
[1737863819711,2.99562,3338.2,3338.1,0.7835]
[1737863820008,2.99549,3338.4,3337.9,0.8514575]
[1737863820215,0.2488,3338.0,3337.9,0.8514575]
[1737863830728,0.2488,3338.0,3337.9,0.0679575]
[1737863832384,3.28393694,3338.0,3337.9,0.0679575]
[1737863832585,3.91190363,3338.0,3337.9,0.0679575]
[1737863834787,4.74320363,3338.0,3337.9,0.0679575]
[1737863836782,4.70386669,3338.0,3337.9,0.0679575]
[1737863838744,7.70386669,3338.0,3337.9,0.0679575]
[1737863839498,13.01103232,3338.0,3337.9,0.0679575]
[1737863841834,14.17450038,3338.0,3337.9,0.0679575]
[1737863842176,13.01103232,3338.0,3337.9,0.0679575]
[1737863842730,14.17450038,3338.0,3337.9,0.0679575]
[1737863842929,13.01103232,3338.0,3337.9,0.0679575]
[1737863849479,14.17450038,3338.0,3337.9,0.0679575]
[1737863850680,13.01103232,3338.0,3337.9,0.0679575]
[1737863858597,12.17973232,3338.0,3337.9,0.0679575]
[1737863858887,8.55176563,3338.0,3337.9,0.0679575]
[1737863859073,8.55176563,3338.0,3337.9,0.8668575]
[1737863860790,8.55176563,3338.0,3337.9,0.0679575]
[1737863861331,11.55176563,3338.0,3337.9,0.0679575]
[1737863861735,12.35326563,3338.0,3337.9,0.0679575]
[1737863862030,14.004501,3338.0,3337.9,0.0679575]
[1737863865909,14.1560505,3338.0,3337.9,0.0679575]
[1737863868343,14.004501,3338.0,3337.9,0.0679575]
[1737863882126,13.203001,3338.0,3337.9,0.0679575]
[1737863882488,8.55176563,3338.0,3337.9,0.0679575]
[1737863882690,8.55176563,3338.0,3337.9,0.8294575]
[1737863884401,5.55596563,3338.0,3337.9,0.8294575]
[1737863889940,0.2488,3338.0,3337.9,0.8294575]
[1737863897054,0.2488,3338.0,3337.9,3.8253475]
[1737863897249,0.2488,3338.0,3337.9,4.51048505]
[1737863898756,0.2488,3338.0,3337.9,1.51459505]
[1737863899042,0.2488,3338.0,3337.9,4.51048505]
[1737863902950,0.2488,3338.0,3337.9,8.06048505]
[1737863908579,0.2488,3338.0,3337.9,7.51048505]
[1737863909169,0.2488,3338.0,3337.9,4.51048505]
[1737863909768,0.2488,3338.0,3337.9,0.75309505]
[1737863909925,0.2488,3338.0,3337.9,0.0679575]
[1737863914077,0.2488,3338.0,3337.9,3.91560352]
[1737863914371,0.2488,3338.0,3337.9,6.8856475]
[1737863917130,0.2488,3338.0,3337.9,7.4356475]
[1737863917408,0.2488,3338.0,3337.9,8.47881925]
[1737863918767,1e-05,3338.0,3337.9,8.47881925]
[1737863921817,8.30153563,3339.6,3337.9,8.47881925]
[1737863921818,8.30153563,3339.6,3338.1,0.7563]
[1737863921983,0.7588,3339.5,3338.9,2.99498]
[1737863922191,0.79520906,3339.5,3338.9,2.99498]
[1737863922432,3.78968906,3339.5,3338.7,3.75141]
[1737863922591,2.99459,3339.4,3338.7,3.75141]
[1737863922772,3.70934386,3339.4,3338.7,2.99511]
[1737863923689,0.71475386,3339.4,3338.7,2.99511]
[1737863923993,0.03632595,3339.4,3338.7,2.99511]
[1737863924930,3.03089595,3339.4,3338.7,2.99511]
[1737863925135,0.7588,3339.3,3338.7,2.99511]
[1737863925306,3.75345,3339.3,3338.7,2.99511]
[1737863925489,0.03085692,3339.2,3338.7,2.99511]
[1737863927432,0.03085692,3339.2,3338.8,2.99508]
[1737863927633,0.7588,3339.3,3338.8,3.59711774]
[1737863927836,0.02870237,3339.1,3338.8,3.59711774]
[1737863928142,0.7588,3339.3,3338.9,2.99499]
[1737863928325,0.02863706,3339.0,3338.9,2.99499]
[1737863928525,0.7588,3339.3,3338.9,2.99499]
[1737863928703,0.02863706,3339.0,3338.9,2.99499]
[1737863928916,0.7588,3339.3,3338.9,3.65419477]
[1737863929229,0.7588,3339.3,3338.9,2.99499]
[1737863929436,0.02876768,3339.2,3338.9,2.99499]
[1737863929632,0.7588,3339.3,3338.9,2.99499]
[1737863930324,0.02876768,3339.2,3338.9,2.99499]
[1737863930695,0.7588,3339.3,3338.9,2.99499]
[1737863930914,0.02870237,3339.1,3338.9,2.99499]
[1737863931244,0.7588,3339.3,3338.9,2.99499]
[1737863931444,0.02863706,3339.0,3338.9,2.99499]
[1737863931734,0.7588,3339.3,3338.9,3.59700074]
[1737863931936,0.02863706,3339.0,3338.9,3.59700074]
[1737863932538,0.7588,3339.3,3338.9,3.59700074]
[1737863932725,0.02863706,3339.0,3338.9,2.99499]
[1737863933211,0.7588,3339.3,3338.9,2.99499]
[1737863933535,0.02863706,3339.0,3338.9,2.99499]
[1737863933736,0.7588,3339.3,3338.9,2.99499]
[1737863933926,0.02863706,3339.0,3338.9,2.99499]
[1737863934238,0.7588,3339.3,3338.9,2.99499]
[1737863934537,0.02863706,3339.0,3338.9,2.99499]
[1737863934740,0.7588,3339.3,3338.9,2.99499]
[1737863934943,0.02863706,3339.0,3338.9,2.99499]
[1737863935142,0.7588,3339.3,3338.9,2.99499]
[1737863935645,0.02876768,3339.2,3338.9,2.99499]
[1737863935844,0.7588,3339.3,3338.9,2.99499]
[1737863936185,0.02870237,3339.1,3338.9,2.99499]
[1737863936347,0.7588,3339.3,3338.9,2.99499]
[1737863936639,0.02876768,3339.2,3338.9,2.99499]
[1737863936944,0.826,3339.7,3339.1,2.99481]
[1737863937232,0.826,3339.7,3339.2,2.99464]
[1737863937739,0.02902885,3339.6,3339.2,2.99464]
[1737863941947,0.02902885,3339.6,3339.0,0.02994491]
[1737863942244,0.02902885,3339.6,3339.5,2.99446]
[1737863942660,0.826,3339.9,3339.5,2.99446]
[1737863942828,0.02911891,3339.6,3339.3,6.8181]
[1737863943024,0.826,3339.9,3339.3,6.8181]
[1737863943025,0.826,3339.9,3339.4,2.99451]
[1737863943212,0.02905362,3339.5,3339.4,2.99451]
[1737863943412,0.826,3339.9,3339.4,2.99451]
[1737863943637,0.02905362,3339.5,3339.4,2.99451]
[1737863943846,0.826,3339.9,3339.4,2.99451]
[1737863944155,0.02905362,3339.5,3339.4,2.99451]
[1737863944372,0.826,3339.9,3339.4,2.99451]
[1737863944373,0.826,3339.9,3339.4,3.67932428]
[1737863944656,0.826,3339.9,3339.4,2.99451]
[1737863945162,0.02924947,3339.8,3339.4,2.99451]
[1737863949136,0.02924947,3339.8,3339.3,3.82345]
[1737863949813,0.02924947,3339.8,3339.1,2.99479]
[1737863949814,3.76995,3339.7,3339.1,2.99479]
[1737863950245,3.79731039,3339.7,3339.1,2.99479]
[1737863950967,2.99437,3339.6,3338.9,2.99498]
[1737863951131,2.99437,3339.6,3339.0,2.9949]
[1737863951337,0.02723853,3339.5,3339.0,2.9949]
[1737863952363,0.02723853,3339.5,3339.1,2.99479]
[1737863952532,0.02723853,3339.5,3339.1,3.02473482]
[1737863952733,0.7756,3339.7,3339.2,2.9947]
[1737863952952,0.02717759,3339.4,3339.2,2.9947]
[1737863953152,0.7756,3339.7,3339.3,0.60195448]
[1737863953336,0.03307918,3339.3,3339.2,2.9947]
[1737863953548,0.7756,3339.7,3339.2,2.9947]
[1737863954046,0.03330778,3339.6,3339.2,2.9947]
[1737863958479,0.7756,3339.7,3339.2,2.9947]
[1737863959583,2.99454,3339.5,3339.0,0.02994482]
[1737863959881,0.8243,3339.3,3338.8,2.99506]
[1737863960186,0.8243,3339.3,3338.7,3.78078]
[1737863961156,3.81895,3339.3,3338.5,2.99535]
[1737863961382,2.99474,3339.2,3338.5,2.99535]
[1737863961587,11.30130563,3339.9,3338.3,2.99552]
[1737863961588,2.99493,3339.0,3338.3,2.99552]
[1737863961784,2.99493,3339.0,3338.3,3.02547047]
[1737863965201,2.99493,3339.0,3338.3,2.99552]
[1737863965855,2.99493,3339.0,3338.3,3.02547047]
[1737863966061,3.81912,3339.1,3338.4,3.67604805]
[1737863966262,3.81912,3339.1,3338.5,0.02995048]
[1737863967060,3.81912,3339.1,3338.5,3.02530048]
[1737863969001,0.8243,3339.1,3338.6,3.78093]
[1737863969378,0.8243,3339.1,3338.7,0.02994823]
[1737863969575,0.8243,3339.1,3338.6,3.78093]
[1737863969782,0.8243,3339.1,3338.7,3.02505823]
[1737863972791,0.8243,3339.1,3338.7,3.02505824]
[1737863973678,0.8243,3339.1,3338.7,2.99511]
[1737863973926,0.8243,3339.1,3338.6,1.56134504]
[1737863974110,0.8243,3339.1,3338.6,1.5313968]
[1737863974448,0.8243,3339.1,3338.7,0.45267468]
[1737863975619,0.8243,3339.1,3338.3,2.99552]
[1737863975825,2.99502,3338.9,3338.3,3.81942]
[1737863977149,2.99502,3338.9,3338.3,3.84937049]
[1737863978357,2.99502,3338.9,3338.3,3.81942]
[1737863979255,3.81918,3339.1,3338.3,3.8493705]
[1737863979558,3.81918,3339.1,3338.4,0.68450705]
[1737863979755,0.8243,3339.1,3338.4,0.68450705]
[1737863979959,2.99492,3339.0,3338.4,0.68450705]
[1737863981221,2.99492,3339.0,3338.5,0.02995051]
[1737863981716,2.99474,3339.2,3338.6,0.8239]
[1737863981919,2.995,3338.9,3338.4,0.68450705]
[1737863984262,2.995,3338.9,3338.1,6.81955]
[1737863984467,2.99508,3338.8,3338.1,6.81955]
[1737863984766,3.78608,3338.7,3338.1,0.8239]
[1737863984973,2.99537,3338.5,3337.9,3.0679575]
[1737863985177,2.99537,3338.5,3337.9,0.0679575]
[1737863985331,3.78608,3338.7,3337.9,0.0679575]
[1737863985674,2.99545,3338.4,3337.9,0.0679575]
[1737863988565,5.30716563,3339.1,3337.9,0.09791306]
[1737863988813,2.99507,3338.9,3338.2,2.99562]
[1737863990034,2.99507,3338.9,3338.2,3.67858275]
[1737863990575,2.9952,3338.7,3338.0,3.766]
[1737863990768,2.9952,3338.7,3338.0,0.7702]
[1737863991137,2.99526,3338.6,3338.0,0.7702]
[1737863992031,0.7745,3338.7,3338.0,0.7702]
[1737863992230,2.99537,3338.5,3338.0,0.7702]
[1737863993966,3.76968,3338.7,3337.9,0.0679575]
[1737863993967,2.99545,3338.4,3337.9,0.0679575]
[1737863994166,2.99545,3338.4,3337.9,0.45303825]
[1737863994765,2.99553,3338.3,3337.9,0.45303825]
[1737863996394,2.99553,3338.3,3337.9,0.0679575]
[1737863998414,2.99527,3338.6,3337.9,0.0679575]
[1737863998715,2.99545,3338.4,3337.9,0.0679575]
[1737863999678,2.99527,3338.6,3337.9,0.0679575]
[1737864001593,0.7745,3338.7,3337.9,3.0638375]
[1737864001799,2.99535,3338.5,3337.9,3.75151191]
[1737864002671,2.99553,3338.3,3337.9,0.09791405]
[1737864002876,2.9958,3338.0,3337.9,0.0679575]
[1737864003273,3.7998,3338.0,3337.9,0.0679575]
[1737864003520,4.479346,3338.0,3337.9,0.0679575]
[1737864005615,4.230546,3338.0,3337.9,0.0679575]
[1737864010233,2.99566,3338.2,3337.9,0.0679575]
[1737864010392,2.99573,3338.1,3337.9,0.0679575]
[1737864012185,2.99554,3338.3,3337.9,0.0679575]
[1737864013031,2.99562,3338.2,3337.9,0.0679575]
[1737864013385,2.9958,3338.0,3337.9,0.0679575]
[1737864013593,3.8084,3338.0,3337.9,0.0679575]
[1737864014501,4.488802,3338.0,3337.9,0.0679575]
[1737864015241,12.79596763,3338.0,3337.9,0.0679575]
[1737864015540,12.79596763,3338.0,3336.9,0.7502]
[1737864015541,2.9966,3337.2,3336.9,0.7502]
[1737864015834,2.99647,3337.3,3336.9,0.7502]
[1737864016335,2.99672,3337.0,3336.5,0.7502]
[1737864016487,2.99672,3337.0,3336.5,1.12495]
[1737864017129,2.99672,3337.0,3336.5,0.7502]
[1737864017335,2.99652,3337.2,3336.5,0.7502]
[1737864017651,2.99662,3337.1,3336.5,0.7502]
[1737864019045,2.9967,3337.0,3336.5,0.7502]
[1737864019451,2.99681,3336.9,3336.5,0.7502]
[1737864020304,2.99652,3337.2,3336.5,0.7502]
[1737864020536,2.99665,3337.1,3336.5,0.7502]
[1737864021134,5.30716563,3337.7,3337.0,2.9967]
[1737864021339,5.30716563,3337.7,3337.2,0.7502]
[1737864021508,8.30325563,3337.7,3337.2,0.7502]
[1737864022207,5.30716563,3337.7,3337.2,0.7502]
[1737864022522,5.30716563,3337.7,3337.2,3.72668221]
[1737864023912,5.30716563,3337.7,3337.2,3.69672]
[1737864024754,5.30716563,3337.7,3337.2,6.69324]
[1737864024967,5.30716563,3337.7,3337.3,0.67232022]
[1737864025852,6.07026563,3337.7,3337.3,0.67232022]
[1737864026056,6.07026563,3337.7,3337.2,2.99652]
[1737864026384,6.07026563,3337.7,3337.0,3.7469]
[1737864026858,0.7631,3337.7,3337.0,3.7469]
[1737864030490,0.7631,3337.7,3337.1,2.99654]
[1737864030674,0.7631,3337.7,3337.1,3.670892]
[1737864033995,0.58819121,3338.4,3337.1,3.670892]
[1737864033996,0.58819121,3338.4,3337.2,0.7638]
[1737864034197,3.76384,3339.0,3338.2,2.9956]
[1737864034497,3.76384,3339.0,3338.4,2.99543]
[1737864034791,1.67600056,3339.0,3338.6,2.99525]
[1737864034995,3.78263,3339.2,3338.6,2.99525]
[1737864035450,3.78263,3339.2,3338.4,2.99543]
[1737864036399,0.60881523,3339.0,3338.4,2.99543]
[1737864037303,0.60881523,3339.0,3338.6,2.99525]
[1737864038865,3.78265,3339.2,3338.6,2.99525]
[1737864044703,3.78265,3339.2,3338.4,2.99544]
[1737864044704,0.7879,3339.2,3338.4,2.99544]
[1737864044906,2.99515,3338.8,3338.1,2.99571]
[1737864045112,0.7823,3338.7,3337.9,2.99586]
[1737864045315,2.99527,3338.6,3337.9,2.99586]
[1737864046701,2.99536,3338.5,3337.9,2.99586]
[1737864049011,3.77751,3338.7,3337.9,2.99586]
[1737864049379,4.36592853,3338.7,3337.9,2.99586]
[1737864050018,4.36592853,3338.7,3338.0,2.99577]
[1737864051127,5.10201438,3338.7,3338.0,2.99577]
[1737864051518,5.08703647,3338.7,3338.0,2.99577]
[1737864052316,2.09182647,3338.7,3338.0,2.99577]
[1737864052505,2.99527,3338.6,3338.0,2.99577]
[1737864057322,0.8178,3338.6,3337.6,2.99615]
[1737864057533,0.8178,3338.0,3337.5,3.79095]
[1737864057822,0.8178,3338.0,3337.5,0.7947]
[1737864063223,2.99572,3338.1,3337.5,0.7947]
[1737864063527,0.58973859,3338.2,3337.6,2.99616]
[1737864063739,0.58973859,3338.2,3337.9,2.99582]
[1737864064906,0.58973859,3338.2,3337.8,0.7947]
[1737864065432,0.58973859,3338.2,3337.8,3.79068]
[1737864066928,0.58973859,3338.2,3337.8,0.7947]
[1737864069321,0.58973859,3338.2,3337.6,2.99614]